bitfinex-derivatives/quotes_BTCF0:USTF0_20250101
["timestamp","ask_amount","ask_price","bid_price","bid_amount"]
[1735757234155,0.20571603,94389.0,94388.0,0.053092]
[1735757235256,0.25880703,94389.0,94388.0,0.053092]
[1735757243466,0.20571603,94389.0,94388.0,0.053092]
[1735757243662,0.09977093,94389.0,94388.0,0.053092]
[1735757253584,0.09977093,94389.0,94385.0,0.3608]
[1735757253784,0.25880803,94389.0,94388.0,0.053092]
[1735757254092,0.20571603,94389.0,94388.0,0.053092]
[1735757254592,0.1079451,94389.0,94388.0,0.053092]
[1735757255594,0.1069451,94389.0,94388.0,0.053092]
[1735757256485,0.1079451,94389.0,94388.0,0.053092]
[1735757257689,0.20571406,94389.0,94388.0,0.053092]
[1735757259490,0.09976896,94389.0,94388.0,0.053092]
[1735757261202,0.19249148,94400.0,94399.0,0.053085]
[1735757261400,0.12157008,94400.0,94399.0,0.053085]
[1735757261904,0.22751518,94400.0,94399.0,0.053085]
[1735757262400,0.22851518,94400.0,94399.0,0.053085]
[1735757262997,0.22851518,94400.0,94399.0,0.054085]
[1735757263398,0.34275706,94400.0,94399.0,0.054085]
[1735757263896,0.70355706,94400.0,94399.0,0.054085]
[1735757264998,0.75664206,94400.0,94399.0,0.001]
[1735757265199,1.00355706,94400.0,94374.0,0.3608]
[1735757265507,0.1240154,94384.0,94383.0,0.053094]
[1735757265703,0.3608,94390.0,94360.0,0.0709214]
[1735757265999,0.3608,94379.0,94378.0,0.053097]
[1735757266300,0.053092,94388.0,94374.0,0.053099]
[1735757266505,0.053092,94388.0,94387.0,0.053092]
[1735757267103,0.15903823,94388.0,94387.0,0.053092]
[1735757267601,0.2568272,94388.0,94387.0,0.053092]
[1735757269597,0.2578272,94388.0,94387.0,0.053092]
[1735757276409,0.2578272,94388.0,94387.0,0.02702504]
[1735757286218,0.2047352,94388.0,94387.0,0.02702504]
[1735757291217,0.1548352,94388.0,94387.0,0.02702504]
[1735757291422,0.11425921,94394.0,94393.0,0.053089]
[1735757291619,0.11425921,94394.0,94393.0,0.413889]
[1735757292114,0.2201987,94394.0,94393.0,0.413889]
[1735757292515,0.10593949,94394.0,94393.0,0.413889]
[1735757292909,0.12157008,94400.0,94399.0,0.053085]
[1735757293513,0.22750957,94400.0,94399.0,0.053085]
[1735757294411,0.22850957,94400.0,94399.0,0.054085]
[1735757294813,0.34274634,94400.0,94399.0,0.054085]
[1735757295615,0.34274634,94400.0,94399.0,0.06518065]
[1735757297517,0.23680685,94400.0,94399.0,0.06518065]
[1735757298324,0.12257008,94400.0,94399.0,0.06518065]
[1735757302611,0.07167008,94400.0,94399.0,0.36518065]
[1735757303325,0.07067008,94400.0,94399.0,0.36518065]
[1735757303525,0.07067008,94400.0,94399.0,0.06518065]
[1735757305223,0.06667399,94400.0,94399.0,0.36518065]
[1735757305930,0.00135807,94400.0,94399.0,0.36518065]
[1735757306223,0.00135807,94400.0,94399.0,0.36618065]
[1735757306627,0.00135807,94400.0,94399.0,0.36818065]
[1735757306927,0.0316,94429.0,94424.0,0.053071]
[1735757307129,0.0316,94429.0,94424.0,0.413871]
[1735757307529,0.20593276,94425.0,94424.0,0.413871]
[1735757309929,0.20693276,94425.0,94424.0,0.414871]
[1735757310124,0.20693276,94425.0,94424.0,0.42586606]
[1735757310319,0.101,94425.0,94424.0,0.42586606]
[1735757316223,0.101,94425.0,94424.0,0.37279506]
[1735757316424,0.101,94425.0,94424.0,0.42586606]
[1735757317118,0.20690471,94425.0,94424.0,0.42586606]
[1735757317930,0.32110493,94425.0,94424.0,0.42586606]
[1735757325339,0.20690471,94425.0,94424.0,0.42586606]
[1735757327339,0.03274771,94425.0,94424.0,0.42586606]
[1735757329737,0.00046269,94438.0,94424.0,0.42586606]
[1735757329926,0.23841934,95174.0,94424.0,0.42586606]
[1735757329927,0.10590471,94425.0,94424.0,0.42586606]
[1735757330121,0.053066,94435.0,94424.0,0.42586606]
[1735757330321,0.053066,94435.0,94434.0,0.053066]
[1735757330731,0.15896342,94435.0,94434.0,0.053066]
[1735757331935,0.10589742,94435.0,94434.0,0.053066]
[1735757332433,0.11419986,94438.0,94434.0,0.053066]
[1735757332434,0.11419986,94438.0,94437.0,0.053064]
[1735757332833,0.22009336,94438.0,94437.0,0.053064]
[1735757333635,0.22009336,94438.0,94437.0,0.054064]
[1735757340035,0.27315736,94438.0,94437.0,0.054064]
[1735757342441,0.27315736,94438.0,94437.0,0.001]
[1735757344340,0.27322402,94438.0,94437.0,0.001]
[1735757347448,0.27322402,94438.0,94437.0,0.00060835]
[1735757348447,0.27322402,94438.0,94410.0,0.0709214]
[1735757348650,0.053075,94421.0,94420.0,0.053073]
[1735757349445,0.1589842,94421.0,94420.0,0.053073]
[1735757349651,0.1589842,94421.0,94420.0,0.054073]
[1735757352846,0.1589842,94421.0,94420.0,0.001]
[1735757354246,0.28434687,94421.0,94420.0,0.001]
[1735757355751,0.053076,94416.0,94415.0,0.00158867]
[1735757355950,0.053076,94416.0,94415.0,0.05466467]
[1735757356143,0.23127187,94421.0,94408.0,0.05308]
[1735757356144,0.053079,94410.0,94408.0,0.05308]
[1735757356550,0.053079,94410.0,94403.0,0.03]
[1735757356551,0.053082,94406.0,94403.0,0.03]
[1735757357549,0.10592715,94405.0,94404.0,0.053083]
[1735757358252,0.413878,94412.0,94406.0,0.053081]
[1735757358558,0.002,94410.0,94406.0,0.053081]
[1735757359160,0.413878,94412.0,94406.0,0.053081]
[1735757359341,0.10592322,94409.0,94407.0,0.053081]
[1735757359652,0.002,94410.0,94407.0,0.053081]
[1735757360555,0.10592266,94409.0,94407.0,0.053081]
[1735757361647,0.41643801,94412.0,94403.0,0.03]
[1735757361855,0.10592322,94408.0,94404.0,0.053083]
[1735757362051,0.10592322,94408.0,94403.0,0.03]
[1735757362254,0.002,94409.0,94407.0,0.053081]
[1735757362648,0.10592547,94408.0,94407.0,0.053081]
[1735757362843,0.053084,94403.0,94402.0,0.053083]
[1735757363050,0.10592547,94408.0,94401.0,0.37205727]
[1735757363355,0.3608,94412.0,94403.0,0.001]
[1735757363553,0.10592939,94408.0,94403.0,0.001]
[1735757363757,0.05308,94410.0,94406.0,0.053081]
[1735757363947,0.10592939,94407.0,94401.0,0.37205727]
[1735757364150,0.10592939,94407.0,94406.0,0.053082]
[1735757364352,0.3608,94412.0,94408.0,0.05308]
[1735757364649,0.10592322,94411.0,94402.0,0.001]
[1735757364850,0.002,94408.0,94402.0,0.001]
[1735757365346,0.3608,94412.0,94409.0,0.05308]
[1735757365758,0.3608,94412.0,94401.0,0.37205727]
[1735757365949,0.3608,94412.0,94410.0,0.053079]
[1735757366149,0.10592659,94411.0,94410.0,0.053079]
[1735757368253,0.10792659,94411.0,94410.0,0.053079]
[1735757369253,0.10792659,94411.0,94410.0,0.084479]
[1735757370357,0.16100559,94411.0,94410.0,0.084479]
[1735757374557,0.16100559,94411.0,94390.0,0.4624214]
[1735757374558,0.053084,94406.0,94405.0,0.053082]
[1735757375359,0.15900442,94406.0,94405.0,0.053082]
[1735757375761,0.16000442,94406.0,94405.0,0.053082]
[1735757376146,0.053087,94399.0,94398.0,0.053085]
[1735757376852,0.15901303,94399.0,94398.0,0.053085]
[1735757377362,0.15901303,94399.0,94398.0,0.055085]
[1735757378458,0.16101303,94399.0,94398.0,0.054085]
[1735757378658,0.16101303,94399.0,94398.0,0.056085]
[1735757379464,0.16101303,94399.0,94398.0,0.054085]
[1735757379960,0.16101303,94399.0,94390.0,0.3608]
[1735757379961,0.053089,94393.0,94392.0,0.053089]
[1735757380551,0.05309,94391.0,94390.0,0.3608]
[1735757380761,0.05309,94391.0,94390.0,0.37152793]
[1735757381260,0.15902388,94391.0,94390.0,0.37152793]
[1735757381665,0.16202388,94391.0,94390.0,0.37152793]
[1735757384258,0.16202388,94391.0,94390.0,0.01072793]
[1735757384462,0.053092,94390.0,94389.0,0.053091]
[1735757385062,0.15903486,94390.0,94389.0,0.053091]
[1735757387059,0.16203486,94390.0,94389.0,0.053091]
[1735757391868,0.16203486,94390.0,94385.0,0.0106858]
[1735757392061,0.053104,94366.0,94358.0,0.37145203]
[1735757392262,0.053104,94366.0,94361.0,0.053107]
[1735757392473,0.053104,94366.0,94358.0,0.3608]
[1735757392661,0.15905023,94366.0,94358.0,0.3608]
[1735757393264,0.15905023,94366.0,94365.0,0.00458952]
[1735757393666,0.15905023,94366.0,94365.0,0.00258952]
[1735757393867,0.15905023,94366.0,94365.0,0.00358952]
[1735757394557,0.15905023,94366.0,94365.0,0.05669452]
[1735757398873,0.15905023,94366.0,94365.0,0.002]
[1735757403164,0.2127642,94362.0,94342.0,0.3912]
[1735757403369,0.053115,94348.0,94347.0,0.053115]
[1735757403572,0.3608,94352.0,94339.0,0.0315]
[1735757403772,0.053118,94342.0,94341.0,0.053118]
[1735757403970,0.413918,94342.0,94341.0,0.053118]
[1735757404373,0.46679789,94342.0,94339.0,0.04218753]
[1735757404568,0.46679789,94342.0,94339.0,0.0315]
[1735757404569,0.053119,94340.0,94339.0,0.0315]
[1735757404970,0.053119,94340.0,94332.0,0.01070165]
[1735757405171,0.10599789,94340.0,94332.0,0.01070165]
[1735757405483,0.053121,94336.0,94319.0,0.0617]
[1735757406470,0.10600069,94335.0,94332.0,0.009]
[1735757406874,0.10600069,94335.0,94334.0,0.053122]
[1735757408880,0.11500069,94335.0,94334.0,0.053122]
[1735757409478,0.11400069,94335.0,94334.0,0.054122]
[1735757409879,0.11400069,94335.0,94334.0,0.053122]
[1735757410078,0.01,94335.0,94334.0,0.054122]
[1735757410276,0.0709214,94350.0,94349.0,0.053114]
[1735757410576,0.10600575,94354.0,94349.0,0.053113]
[1735757410780,0.10600575,94354.0,94353.0,0.053111]
[1735757411082,0.053108,94359.0,94355.0,0.05311]
[1735757411482,0.1059844,94358.0,94355.0,0.05311]
[1735757411975,0.1590934,94358.0,94355.0,0.05311]
[1735757412177,0.1059844,94358.0,94357.0,0.053109]
[1735757412390,0.053109,94358.0,94357.0,0.053109]
[1735757412772,0.10598103,94360.0,94359.0,0.053108]
[1735757412972,0.053106,94363.0,94359.0,0.053108]
[1735757413173,0.10598103,94360.0,94359.0,0.053108]
[1735757414178,0.41446301,94369.0,94368.0,0.053103]
[1735757414375,0.413903,94369.0,94368.0,0.053103]
[1735757414883,0.51988067,94369.0,94368.0,0.053103]
[1735757415384,0.46677767,94369.0,94368.0,0.053103]
[1735757415890,0.10597767,94369.0,94368.0,0.053103]
[1735757416181,0.0531,94374.0,94361.0,0.01063321]
[1735757416477,0.10596756,94373.0,94372.0,0.053101]
[1735757417571,0.10796756,94373.0,94372.0,0.053101]
[1735757417976,0.002,94373.0,94372.0,0.053101]
[1735757419281,0.002,94373.0,94365.0,0.3608]
[1735757419486,0.002,94373.0,94372.0,0.053101]
[1735757419787,0.002,94373.0,94366.0,0.053104]
[1735757419975,0.002,94373.0,94372.0,0.053101]
[1735757420384,0.053094,94383.0,94381.0,0.053096]
[1735757420779,0.10596307,94382.0,94381.0,0.053096]
[1735757421780,0.10596307,94382.0,94381.0,0.02798862]
[1735757422586,0.10796307,94382.0,94381.0,0.02898862]
[1735757423283,0.10796307,94382.0,94381.0,0.001]
[1735757425189,0.16105807,94382.0,94381.0,0.001]
[1735757436784,0.16105807,94382.0,94381.0,0.054096]
[1735757437985,0.16105807,94382.0,94381.0,0.414896]
[1735757438700,0.16105807,94382.0,94381.0,0.413896]
[1735757438892,0.16105807,94382.0,94381.0,0.42463055]
[1735757439594,0.16105807,94382.0,94381.0,0.413896]
[1735757440487,0.16105807,94382.0,94373.0,0.0531]
[1735757440687,0.0321,94381.0,94363.0,0.393]
[1735757440891,0.053105,94364.0,94363.0,0.3608]
[1735757441290,0.15905796,94364.0,94363.0,0.3608]
[1735757441491,0.053111,94354.0,94353.0,0.053111]
[1735757442095,0.15908417,94354.0,94353.0,0.053111]
[1735757443489,0.15908417,94354.0,94353.0,0.054111]
[1735757443999,0.15908417,94354.0,94353.0,0.055111]
[1735757444486,0.15908417,94354.0,94353.0,0.415911]
[1735757452305,0.10597317,94354.0,94353.0,0.415911]
[1735757452695,0.053108,94359.0,94358.0,0.053108]
[1735757453297,0.1590924,94359.0,94358.0,0.053108]
[1735757453796,0.1059844,94359.0,94358.0,0.053108]
[1735757454205,0.053105,94364.0,94363.0,0.053106]
[1735757454799,0.15908379,94364.0,94363.0,0.053106]
[1735757455894,0.16208379,94364.0,94363.0,0.053106]
[1735757466506,0.05311,94359.0,94358.0,0.053108]
[1735757467207,0.15908317,94359.0,94358.0,0.053108]
[1735757473711,0.10597317,94359.0,94358.0,0.053108]
[1735757474013,0.053105,94364.0,94353.0,0.3608]
[1735757474209,0.053105,94364.0,94363.0,0.053106]
[1735757474718,0.15907817,94364.0,94363.0,0.053106]
[1735757475108,0.15907817,94364.0,94363.0,0.02953191]
[1735757477115,0.16207817,94364.0,94363.0,0.02953191]
[1735757488819,0.10897317,94364.0,94363.0,0.02953191]
[1735757491114,0.003,94364.0,94363.0,0.02953191]
[1735757492115,0.003,94364.0,94363.0,0.32953191]
[1735757492322,0.0312,94389.0,94373.0,0.0531]
[1735757492522,0.053092,94388.0,94387.0,0.413892]
[1735757493119,0.15906517,94388.0,94387.0,0.3608]
[1735757494224,0.15906517,94388.0,94387.0,0.3618]
[1735757494225,0.16706517,94388.0,94387.0,0.3618]
[1735757494933,0.16806517,94388.0,94387.0,0.3618]
[1735757495117,0.16806517,94388.0,94387.0,0.001]
[1735757496326,0.053097,94378.0,94377.0,0.053097]
[1735757496622,0.053101,94373.0,94372.0,0.053101]
[1735757497222,0.053101,94373.0,94369.0,0.3608]
[1735757497223,0.053102,94370.0,94369.0,0.3608]
[1735757497526,0.053105,94364.0,94363.0,0.053106]
[1735757498422,0.15907144,94364.0,94363.0,0.053106]
[1735757499928,0.15907144,94364.0,94363.0,0.055106]
[1735757500117,0.15907144,94364.0,94363.0,0.058106]
[1735757501226,0.16107144,94364.0,94363.0,0.055106]
[1735757502019,0.16107144,94364.0,94363.0,0.054106]
[1735757502529,0.16107144,94364.0,94363.0,0.001]
[1735757502920,0.053107,94361.0,94360.0,0.3608]
[1735757503618,0.15908017,94361.0,94360.0,0.3608]
[1735757504118,0.053112,94352.0,94351.0,0.3608]
[1735757504715,0.15909865,94352.0,94351.0,0.3608]
[1735757506215,0.15909865,94352.0,94351.0,0.3628]
[1735757506419,0.15909865,94352.0,94351.0,0.3658]
[1735757507021,0.15909865,94352.0,94351.0,0.3638]
[1735757507323,0.15909865,94352.0,94351.0,0.3628]
[1735757507523,0.16109865,94352.0,94351.0,0.3628]
[1735757508125,0.16109865,94352.0,94351.0,0.002]
[1735757508531,0.10798665,94352.0,94342.0,0.053117]
[1735757508827,0.053116,94345.0,94342.0,0.053117]
[1735757509635,0.053116,94345.0,94344.0,0.00258987]
[1735757509636,0.15910265,94345.0,94344.0,0.00258987]
[1735757510131,0.15910265,94345.0,94344.0,0.00358987]
[1735757510335,0.053119,94339.0,94338.0,0.3608]
[1735757511038,0.15912026,94339.0,94338.0,0.3608]
[1735757511627,0.10600126,94339.0,94337.0,0.05312]
[1735757511933,0.05312,94337.0,94336.0,0.01074754]
[1735757512134,0.0328,94344.0,94331.0,0.053123]
[1735757512322,0.053123,94332.0,94331.0,0.053123]
[1735757512726,0.053123,94332.0,94331.0,0.06402149]
[1735757512926,0.053128,94326.0,94325.0,0.053127]
[1735757513527,0.15913712,94326.0,94325.0,0.053127]
[1735757515936,0.16013712,94326.0,94325.0,0.062127]
[1735757516136,0.16013712,94326.0,94325.0,0.064127]
[1735757516537,0.16013712,94326.0,94325.0,0.058127]
[1735757516538,0.15913712,94326.0,94325.0,0.058127]
[1735757517134,0.15913712,94326.0,94325.0,0.005]
[1735757520645,0.15913712,94326.0,94325.0,0.058127]
[1735757521931,0.10600912,94326.0,94325.0,0.058127]
[1735757522231,0.083424,94331.0,94325.0,0.005]
[1735757522427,0.083424,94331.0,94330.0,0.053124]
[1735757522837,0.18943706,94331.0,94330.0,0.053124]
[1735757523636,0.18943706,94331.0,94330.0,0.054124]
[1735757524929,0.10601306,94331.0,94330.0,0.054124]
[1735757525435,0.053122,94335.0,94334.0,0.053122]
[1735757525838,0.15913225,94335.0,94334.0,0.053122]
[1735757526738,0.16013225,94335.0,94334.0,0.053122]
[1735757529235,0.10701025,94335.0,94334.0,0.053122]
[1735757538847,0.13831025,94335.0,94334.0,0.053122]
[1735757539047,0.19143125,94335.0,94334.0,0.053122]
[1735757541340,0.053125,94330.0,94329.0,0.053125]
[1735757541951,0.15913637,94330.0,94329.0,0.053125]
[1735757542751,0.15913637,94330.0,94329.0,0.054125]
[1735757543655,0.15913637,94330.0,94329.0,0.055125]
[1735757549657,0.27345186,94330.0,94329.0,0.055125]
[1735757551861,0.27345186,94330.0,94329.0,0.03096556]
[1735757553953,0.27345186,94330.0,94329.0,0.002]
[1735757554257,0.05313,94323.0,94322.0,0.053129]
[1735757554862,0.15914924,94323.0,94322.0,0.053129]
[1735757555356,0.15914924,94323.0,94322.0,0.058129]
[1735757555759,0.10601924,94323.0,94322.0,0.058129]
[1735757556158,0.053125,94329.0,94328.0,0.053125]
[1735757556656,0.15914424,94329.0,94328.0,0.053125]
[1735757557054,0.10601924,94329.0,94328.0,0.053125]
[1735757557452,0.053122,94334.0,94333.0,0.053123]
[1735757558165,0.15912887,94334.0,94333.0,0.053123]
[1735757559053,0.16012887,94334.0,94333.0,0.053123]
[1735757571870,0.27444402,94334.0,94333.0,0.053123]
[1735757582975,0.053128,94325.0,94324.0,0.053126]
[1735757583584,0.15913487,94325.0,94324.0,0.053126]
[1735757584184,0.15913487,94325.0,94324.0,0.057126]
[1735757585371,0.15913487,94325.0,94324.0,0.059126]
[1735757586890,0.27345127,94325.0,94324.0,0.059126]
[1735757595689,0.15913487,94325.0,94324.0,0.059126]
[1735757597690,0.15913487,94325.0,94324.0,0.006]
[1735757597894,0.51993487,94325.0,94324.0,0.006]
[1735757598592,0.51993487,94325.0,94310.0,0.36239045]
[1735757598794,0.053134,94316.0,94315.0,0.053133]
[1735757599491,0.15915886,94316.0,94315.0,0.053133]
[1735757600498,0.16015886,94316.0,94315.0,0.061133]
[1735757600692,0.16015886,94316.0,94315.0,0.008]
[1735757602499,0.053134,94314.0,94313.0,0.053134]
[1735757603301,0.15916335,94314.0,94313.0,0.053134]
[1735757603795,0.16016335,94314.0,94313.0,0.053134]
[1735757606396,0.10702935,94314.0,94313.0,0.053134]
[1735757609493,0.16016235,94314.0,94313.0,0.053134]
[1735757610396,0.27450439,94314.0,94313.0,0.053134]
[1735757611203,0.27450439,94314.0,94310.0,0.00159045]
[1735757611204,0.053135,94312.0,94310.0,0.00159045]
[1735757611596,0.47670205,94314.0,94307.0,0.053137]
[1735757611788,0.15916535,94311.0,94307.0,0.053137]
[1735757612195,0.11434204,94310.0,94307.0,0.053137]
[1735757612395,0.22037477,94310.0,94307.0,0.053137]
[1735757612700,0.22037477,94310.0,94309.0,0.053136]
[1735757613806,0.10603273,94310.0,94309.0,0.055136]
[1735757614196,0.11434204,94313.0,94309.0,0.002]
[1735757614397,0.11434204,94313.0,94312.0,0.053134]
[1735757614607,0.053132,94317.0,94312.0,0.053134]
[1735757615015,0.10603385,94313.0,94312.0,0.053134]
[1735757615302,0.053132,94316.0,94312.0,0.053134]
[1735757615506,0.10602823,94313.0,94312.0,0.053134]
[1735757615907,0.053132,94316.0,94312.0,0.053134]
[1735757616206,0.10603048,94313.0,94312.0,0.053134]
[1735757616402,0.053133,94315.0,94312.0,0.053134]
[1735757616600,0.10603048,94313.0,94312.0,0.053134]
[1735757616998,0.053136,94309.0,94306.0,0.053137]
[1735757617197,0.053137,94308.0,94306.0,0.053137]
[1735757617396,0.0325,94307.0,94306.0,0.053137]
[1735757617905,0.13853048,94307.0,94306.0,0.053137]
[1735757618096,0.13853048,94307.0,94306.0,0.055137]
[1735757618899,0.13853048,94307.0,94306.0,0.053137]
[1735757619101,0.13853048,94307.0,94306.0,0.002]
[1735757619102,0.19166748,94307.0,94306.0,0.002]
[1735757619301,0.19166748,94307.0,94306.0,0.005]
[1735757619805,0.19166748,94307.0,94306.0,0.00265602]
[1735757620394,0.30601688,94307.0,94306.0,0.00265602]
[1735757621099,0.053141,94301.0,94300.0,0.1]
[1735757621798,0.15917822,94301.0,94300.0,0.1]
[1735757622396,0.16017822,94301.0,94300.0,0.105]
[1735757622802,0.27452762,94301.0,94300.0,0.105]
[1735757623806,0.16017822,94301.0,94300.0,0.105]
[1735757623996,0.16017822,94301.0,94300.0,0.107]
[1735757631403,0.52097822,94301.0,94300.0,0.107]
[1735757642816,0.35879245,94301.0,94300.0,0.107]
[1735757643122,0.51797742,94301.0,94300.0,0.160141]
[1735757644520,0.10604397,94301.0,94300.0,0.160141]
[1735757644721,0.00158794,94301.0,94300.0,0.160141]
[1735757644911,0.3608,94309.0,94308.0,0.053137]
[1735757645332,0.053133,94314.0,94308.0,0.3608]
[1735757645533,0.10604397,94309.0,94308.0,0.413937]
[1735757645733,0.053128,94324.0,94323.0,0.053127]
[1735757645932,0.0653,94330.0,94314.0,0.07101276]
[1735757646136,0.053126,94328.0,94320.0,0.07101276]
[1735757646441,0.053126,94328.0,94327.0,0.053126]
[1735757646742,0.11432963,94332.0,94331.0,0.053124]
[1735757647328,0.22033875,94332.0,94331.0,0.053124]
[1735757648144,0.22933875,94332.0,94331.0,0.054124]
[1735757648345,0.28246175,94332.0,94331.0,0.054124]
[1735757648729,0.16813212,94332.0,94331.0,0.054124]
[1735757649335,0.17213212,94332.0,94331.0,0.054124]
[1735757649646,0.17213212,94332.0,94331.0,0.001]
[1735757652043,0.053129,94322.0,94321.0,0.3608]
[1735757652745,0.15913812,94322.0,94321.0,0.3608]
[1735757653243,0.16113812,94322.0,94321.0,0.3608]
[1735757654143,0.16613812,94322.0,94321.0,0.3608]
[1735757657643,0.16613812,94322.0,94321.0,0.413929]
[1735757661552,0.16613812,94322.0,94321.0,0.3608]
[1735757663756,0.11300912,94322.0,94316.0,0.053132]
[1735757663945,0.053132,94317.0,94316.0,0.053132]
[1735757664453,0.053137,94310.0,94309.0,0.053135]
[1735757665057,0.15916017,94310.0,94309.0,0.053135]
[1735757665551,0.10602317,94310.0,94309.0,0.053135]
[1735757665754,0.10602317,94310.0,94309.0,0.054135]
[1735757665954,0.053135,94312.0,94311.0,0.053135]
[1735757666545,0.15916885,94312.0,94311.0,0.053135]
[1735757667948,0.10603385,94312.0,94311.0,0.053135]
[1735757668359,0.053133,94315.0,94314.0,0.053133]
[1735757668949,0.1591646,94315.0,94314.0,0.053133]
[1735757670357,0.1611646,94315.0,94314.0,0.053133]
[1735757676352,0.1080316,94315.0,94314.0,0.053133]
[1735757680862,0.22236152,94315.0,94314.0,0.053133]
[1735757681661,0.27549452,94315.0,94314.0,0.053133]
[1735757682162,0.1611646,94315.0,94314.0,0.053133]
[1735757683460,0.27549452,94315.0,94314.0,0.053133]
[1735757686064,0.1611646,94315.0,94314.0,0.053133]
[1735757686459,0.1080316,94315.0,94314.0,0.053133]
[1735757687861,0.1611646,94315.0,94314.0,0.053133]
[1735757689968,0.27549672,94315.0,94314.0,0.053133]
[1735757691170,0.1611646,94315.0,94314.0,0.053133]
[1735757692975,0.27549528,94315.0,94314.0,0.053133]
[1735757695582,0.27549528,94315.0,94314.0,0.03046369]
[1735757699377,0.30589528,94315.0,94314.0,0.03046369]
[1735757706086,0.13389424,94315.0,94314.0,0.03046369]
[1735757706284,0.29305547,94315.0,94314.0,0.03046369]
[1735757707284,0.053134,94312.0,94311.0,0.3608]
[1735757707988,0.15916223,94312.0,94311.0,0.3608]
[1735757709881,0.27350117,94312.0,94311.0,0.3608]
[1735757711482,0.27350117,94312.0,94311.0,0.413935]
[1735757714085,0.22036717,94312.0,94311.0,0.413935]
[1735757715693,0.10602823,94312.0,94311.0,0.413935]
[1735757716191,0.053134,94313.0,94312.0,0.053134]
[1735757716699,0.1591656,94313.0,94312.0,0.053134]
[1735757717089,0.1060316,94313.0,94312.0,0.053134]
[1735757717494,0.053131,94318.0,94317.0,0.053132]
[1735757718188,0.15916148,94318.0,94317.0,0.053132]
[1735757719097,0.16016148,94318.0,94317.0,0.053132]
[1735757720093,0.16316148,94318.0,94317.0,0.053132]
[1735757724796,0.27749178,94318.0,94317.0,0.053132]
[1735757725490,0.22436078,94318.0,94317.0,0.053132]
[1735757726598,0.11003048,94318.0,94317.0,0.053132]
[1735757739602,0.11003048,94318.0,94308.0,0.3608]
[1735757739802,0.053133,94316.0,94315.0,0.053132]
[1735757740513,0.15915786,94316.0,94315.0,0.053132]
[1735757741113,0.16115786,94316.0,94315.0,0.053132]
[1735757743113,0.16215786,94316.0,94315.0,0.053132]
[1735757743509,0.17273095,94316.0,94315.0,0.053132]
[1735757746916,0.28707046,94316.0,94315.0,0.053132]
[1735757747807,0.28707046,94316.0,94315.0,0.03098416]
[1735757748001,0.22336437,94316.0,94315.0,0.03098416]
[1735757748503,0.06572533,94316.0,94315.0,0.03098416]
[1735757748704,0.10602711,94316.0,94315.0,0.03098416]
[1735757749108,0.06572533,94320.0,94319.0,0.05313]
[1735757749708,0.10602261,94320.0,94319.0,0.05313]
[1735757750219,0.10702261,94320.0,94319.0,0.05313]
[1735757750918,0.11102261,94320.0,94319.0,0.05313]
[1735757751917,0.22536211,94320.0,94319.0,0.05313]
[1735757759024,0.27849211,94320.0,94319.0,0.05313]
[1735757760023,0.27849211,94320.0,94319.0,0.03172376]
[1735757767828,0.22536211,94320.0,94319.0,0.03172376]
[1735757768537,0.11102261,94320.0,94319.0,0.03172376]
[1735757769829,0.005,94320.0,94319.0,0.03172376]
[1735757810173,0.11102261,94320.0,94319.0,0.03172376]
[1735757831889,0.11102261,94320.0,94300.0,0.1]
[1735757832086,0.11102261,94320.0,94314.0,0.053133]
[1735757832087,0.053133,94315.0,94314.0,0.053133]
[1735757832599,0.053133,94315.0,94300.0,0.1]
[1735757832600,0.0319,94315.0,94300.0,0.11051871]
[1735757832795,0.053134,94313.0,94309.0,0.053136]
[1735757833293,0.053135,94311.0,94310.0,0.053135]
[1735757833687,0.0319,94315.0,94306.0,0.3648]
[1735757833884,0.053137,94308.0,94306.0,0.004]
[1735757834091,0.053137,94308.0,94306.0,0.056138]
[1735757834285,0.053137,94308.0,94306.0,0.053138]
[1735757834682,0.10603273,94307.0,94306.0,0.053138]
[1735757834889,0.10603273,94307.0,94306.0,0.057138]
[1735757835092,0.13693273,94307.0,94306.0,0.057138]
[1735757836098,0.25125882,94307.0,94306.0,0.057138]
[1735757836791,0.25125882,94307.0,94306.0,0.056138]
[1735757836992,0.25125882,94307.0,94306.0,0.054138]
[1735757837194,0.13693273,94307.0,94306.0,0.057138]
[1735757840108,0.13693273,94307.0,94306.0,0.004]
[1735757844003,0.19006973,94307.0,94306.0,0.004]
[1735757844397,0.30441611,94307.0,94306.0,0.004]
[1735757848098,0.19006973,94307.0,94306.0,0.004]
[1735757849908,0.304418,94307.0,94306.0,0.004]
[1735757850702,0.19006973,94307.0,94306.0,0.004]
[1735757851599,0.13083675,94350.0,94306.0,0.3648]
[1735757851803,0.13083675,94350.0,94338.0,0.3608]
[1735757852004,0.083592,94387.0,94375.0,0.053099]
[1735757852207,0.0305,94387.0,94376.0,0.7216]
[1735757852607,0.00064,94388.0,94376.0,0.7216]
[1735757852803,0.053088,94395.0,94387.0,0.3608]
[1735757852997,0.053088,94395.0,94393.0,0.413889]
[1735757853204,0.10595858,94394.0,94393.0,0.413889]
[1735757853601,0.053084,94401.0,94393.0,0.3608]
[1735757853808,0.10595858,94400.0,94393.0,0.3608]
[1735757854005,0.053082,94405.0,94399.0,0.053085]
[1735757854214,0.053082,94405.0,94404.0,0.3608]
[1735757854599,0.15902149,94405.0,94404.0,0.3608]
[1735757856199,0.16802149,94405.0,94404.0,0.3608]
[1735757856708,0.17202149,94405.0,94404.0,0.3618]
[1735757857010,0.17202149,94405.0,94404.0,0.3628]
[1735757860407,0.17202149,94405.0,94404.0,0.002]
[1735757861104,0.17202149,94405.0,94393.0,0.3608]
[1735757861305,0.053088,94394.0,94393.0,0.3608]
[1735757861809,0.053096,94381.0,94376.0,0.053098]
[1735757862111,0.053097,94378.0,94376.0,0.053098]
[1735757862507,0.10593949,94377.0,94376.0,0.053098]
[1735757862708,0.10593949,94377.0,94374.0,0.3608]
[1735757863018,0.053098,94376.0,94374.0,0.3608]
[1735757863912,0.10596026,94375.0,94374.0,0.3608]
[1735757865903,0.10696026,94375.0,94374.0,0.3608]
[1735757866109,0.10996026,94375.0,94374.0,0.3608]